Cogmind - Beta 17.1 @@@ ROGUE MODE // 2026.08.30 @ 17:12:33 Player: Reverend Result: Destroyed by G-47 Trooper with Particle Gun Performance ------------- Evolutions (0) 0 Regions Visited (1) 200 Robots Destroyed (5) 25 Value Destroyed (146) 146 Prototype IDs (0) 0 Alien Tech Used (0) 0 Bonus (0) 0 TOTAL SCORE: 371 Bonus ------- None Cogmind --------- Core Integrity 0/250 Matter 300/300 Energy 100/100 System Corruption 0% Temperature Cool (9) Movement Core (200) Ox3 Location -10/Materials Parts ------- > --- POWER (1) -------- (None) > --- PROPULSION (2) --- (None) > --- UTILITY (2) ------ Medium Storage Unit Signal Interpreter > --- WEAPON (2) ------- (None) > --- INVENTORY (10) --- Flight Unit Flight Unit Heat Sink Peak State ------------ > --- POWER ------------ Light Ion Engine > --- PROPULSION ------- Wheel Wheel > --- UTILITY ---------- Heat Sink Medium Storage Unit > --- WEAPON ----------- Small Laser Light Assault Rifle > --- INVENTORY -------- (None) [Rating: 7] Favorites ----------- Power Light Ion Engine Engine Light Ion Engine Propulsion Wheel Leg Aluminum Leg Wheel Wheel Flight Unit Flight Unit Utility Medium Storage Unit Device Heat Sink Storage Medium Storage Unit Processor Signal Interpreter Weapon Light Assault Rifle Energy Gun Small Laser Ballistic Gun Light Assault Rifle Special Weapon Mining Laser Special Melee Weapon Datajack Build | -11 -10 ------- Run | Yrd Mat Slots Evolved . | . . Power . | . . Propulsion . | . . Utility . | . . Weapon . | . . Parts Attached 14 | 6 8 Power 1 | 1 . Engine 1 | 1 . Core . | . . Reactor . | . . Propulsion 6 | 2 4 Treads . | . . Leg 2 | . 2 Wheel 2 | 2 . Hover . | . . Flight 2 | . 2 Utility 3 | 1 2 Device 1 | 1 . Storage 1 | . 1 Processor 1 | . 1 Hackware . | . . Protection . | . . Artifact . | . . Weapon 4 | 2 2 Energy Gun 1 | 1 . Energy Cannon . | . . Ballistic Gun 1 | 1 . Ballistic Cannon . | . . Launcher . | . . Special Weapon 1 | . 1 Impact Weapon . | . . Slashing Weapon . | . . Piercing Weapon . | . . Special Melee Weapon 1 | . 1 Unidentified Prototypes . | . . Parts Lost 8 | . 8 Power 1 | . 1 Propulsion 3 | . 3 Utility . | . . Weapon 4 | . 4 Highest Loss Streak 3 | . 3 To Critical Strikes . | . . Average Backups 2 | . 3 Power . | . . Propulsion 1 | . 1 Utility . | . . Weapon . | . . Tool/Special . | . . Unused Backups . | . . Power . | . . Propulsion . | . . Utility . | . . Weapon . | . . Tool/Special . | . . Average Slot Usage (%) 73 | . 73 Engine 6 | . 6 Leg 8 | . 8 Wheel 14 | . 14 Device 1 | . 1 Storage 13 | . 13 Processor 12 | . 12 Energy Gun 3 | . 3 Ballistic Gun 10 | . 10 Special Weapon 1 | . 1 Special Melee Weapon 1 | . 1 Peak Build Rating 7 | 6 7 Average Rating 4 | 3 5 On Entrance 3 | . 6 Avg Prop Armor Cover (%) . | . . Naked Turns . | . . Heaviest Build 16 | 6 16 Greatest Support 20 | 20 20 Greatest Overweight (x) 3 | . 3 Average Overweight (x) . | . . Largest Inventory Capacity 10 | 5 10 Average Capacity 8 | 5 9 Most Carried 5 | 2 5 Average Carried 2 | . 3 Final Capacity 10 | 5 10 Final Carried 3 | . 3 Class Distribution -------------------- 100% | Mutant Dominant Class ---------------- Mutant | -10/Materials Resources | -11 -10 ----------- Run | Yrd Mat Matter Collected 373 | 265 108 Remotely . | . . Salvage Created 201 | 47 154 Parts 11 | 2 9 Haulers Intercepted . | . . Recyclers Shooed . | . . Parts Field Recycled . | . . Retrieved Matter . | . . Parts Self-Destructed . | . . Prevented . | . . Parts Restored . | . . Kills | -11 -10 ------- Run | Yrd Mat Combat Hostiles Destroyed 5 | 1 4 Guns 5 | 1 4 Classes Destroyed 2 | 1 1 Swarmer 1 | . 1 Grunt 4 | 1 3 Best Kill Streak 2 | 1 2 Combat Bots Only 2 | 1 2 Max Kills in Single Turn 1 | 1 1 Gunslinging . | . . Exploded . | . . Melee . | . . Uniques/NPCs Destroyed . | . . Combat | -11 -10 -------- Run | Yrd Mat Hostile Shots Fired 109 | 6 103 Missed 35 | 2 33 Hits 74 | 4 70 Projectile 74 | 4 70 Critical Strikes 1 | . 1 Damage Taken 919 | 43 876 Core 261 | 11 250 Absorbed by Shields . | . . Core Remaining (%) 95 | 95 . Volleys Fired 46 | 5 41 Largest 2 | 2 2 Hottest 100 | 60 100 Shots Fired 54 | 10 44 Gun 52 | 10 42 Cannon . | . . Launcher . | . . Special 2 | . 2 Kinetic 36 | 5 31 Thermal 18 | 5 13 Explosive . | . . Electromagnetic . | . . Robot Hit Streak 6 | 4 6 Robot Miss Streak 4 | 4 3 Penetration Max . | . . Secondary Targets . | . . Shots Hit Robots 33 | 6 27 Core Hits 14 | 2 12 Critical Kills . | . . Critical Parts Destroyed . | . . Critical Strikes . | . . Melee Attacks . | . . Impact . | . . Slashing . | . . Piercing . | . . Sneak Attacks . | . . Combat Hostiles . | . . Follow-up Attacks . | . . Damage Inflicted 377 | 63 314 Guns 317 | 63 254 Cannons . | . . Explosions . | . . Melee . | . . Ramming 12 | . 12 Kinetic 186 | 28 158 Thermal 179 | 35 144 Explosive . | . . Electromagnetic . | . . Impact . | . . Slashing . | . . Piercing . | . . Highest Corruption . | . . Average Corruption . | . . Corruption Purged . | . . Corruption Blocked . | . . Overload Shots . | . . Overflow Damage . | . . Projectiles . | . . Explosions . | . . Melee . | . . Knockbacks . | . . Impact . | . . Kinetic . | . . Secondary . | . . Self-Inflicted Damage 2 | . 2 Shots . | . . Rammed 1 | . 1 Targets Rammed 5 | . 5 Kicked 4 | . 4 Crushed . | . . Highest Temperature 64 | 64 20 Average Temperature 15 | 28 9 Received Heat Transfer 498 | 24 474 Siege Activations . | . . Martial Activations . | . . Shielding Activations . | . . Robots Disrupted . | . . Combat Hostiles . | . . Robots Corrupted . | . . Combat Hostiles . | . . Parts Fried . | . . Impact Corruptions . | . . Robots Melted . | . . Combat Hostiles . | . . Parts Melted . | . . Heat Transferred 400 | 75 325 Parts Sabotaged . | . . Parts Stolen . | . . Parts Stripped . | . . Power Chain Reactions . | . . Alert | -11 -10 ------- Run | Yrd Mat Maximum Alert Level . | . . Low Security (%) 100 | 100 100 Level 1 . | . . Level 2 . | . . Level 3 . | . . Level 4 . | . . Level 5 . | . . High Security . | . . Max Security . | . . Peak Influence 50 | 20 50 Initial 13 | . 13 Average 11 | 4 13 Influence Increases 125 | 20 105 Destroy 0b10 Robot/C 100 | 20 80 Destroy Leader 20 | . 20 Successful Hack 5 | . 5 Influence Decreases 125 | . 125 Entered New Map 7 | . 7 Time Decay 78 | . 78 Lost Part 40 | . 40 Squads Dispatched 3 | . 3 Investigation 2 | . 2 Extermination . | . . Reinforcement 1 | . 1 Assault . | . . Garrison . | . . Intercept . | . . Searches Triggered . | . . Construction Impeded . | . . Haulers Reinforced . | . . Active Scanning Responses . | . . Cargo Convoy Interrupts . | . . Stealth | -11 -10 --------- Run | Yrd Mat Distress Signals . | . . Communications Jammed . | . . Distress Signals . | . . Times Spotted 12 | 1 11 Peak Tracking Total 3 | 1 3 Tactical Retreats . | . . Traps | -11 -10 ------- Run | Yrd Mat Traps Triggered 1 | . 1 Indirectly . | . . Trap Hack Attempts . | . . Triggered . | . . Disarmed . | . . Reprogrammed . | . . Reused . | . . Traps Extracted . | . . Installed . | . . Triggered . | . . Machines | -11 -10 ---------- Run | Yrd Mat Machines Disabled . | . . Max in Single Turn . | . . Machines Repaired . | . . Machines Dismantled . | . . Machines Sabotaged . | . . Overloaded Fab Kills . | . . Hacking | -11 -10 --------- Run | Yrd Mat Machines Accessed 1 | . 1 Terminals 1 | . 1 Fabricators . | . . Repair Stations . | . . Recycling Units . | . . Scanalyzers . | . . Garrison Access . | . . Total Hacks 3 | . 3 Successful 2 | . 2 Failed 1 | . 1 Catastrophic . | . . Database Lockouts . | . . Manual . | . . Terminals 3 | . 3 Fabricators . | . . Repair Stations . | . . Recycling Units . | . . Scanalyzers . | . . Garrison Access . | . . Terminal Hacks 2 | . 2 Record 1 | . 1 Zone Layout 1 | . 1 Fabricator Hacks . | . . Repair Station Hacks . | . . Recycling Unit Hacks . | . . Scanalyzer . | . . Garrison Access Hacks . | . . Unauthorized Hacks . | . . Terminals . | . . Fabricators . | . . Repair Stations . | . . Recycling Units . | . . Scanalyzers . | . . Garrison Access . | . . Data Cores Recovered . | . . Used . | . . Hacking Detections 1 | . 1 Full Trace Events 1 | . 1 Feedback Events . | . . Feedback Blocked . | . . Robot Schematics Acquired . | . . Robots Built . | . . Authchips . | . . Time . | . . Total Robot Build Rating . | . . Part Schematics Acquired . | . . Parts Built . | . . Authchips . | . . Time . | . . Total Part Build Rating . | . . Part Studies Acquired . | . . Parts Repaired . | . . Time . | . . Parts Recycled . | . . Recycled Matter . | . . Retrieved Matter . | . . Retrieved Components . | . . Parts Scanalyzed . | . . Part Schematics Acquired . | . . Parts Damaged . | . . Bothacking | -11 -10 ------------ Run | Yrd Mat Used RIF Installer . | . . Robots Hacked . | . . Non-combat . | . . Combat . | . . Robot Hacks Applied . | . . Relay Couplers Released . | . . Fabnet Peak Effective % . | . . Robots Rewired . | . . Allies Hacked . | . . Hacks Repelled . | . . Allies | -11 -10 -------- Run | Yrd Mat Total Allies . | . . Largest Group . | . . Highest-Rated Group . | . . Highest-Rated Ally . | . . Total Orders . | . . Ally Attacks . | . . Total Damage . | . . Kills . | . . Allies Corrupted . | . . Allies Melted . | . . Intel | -11 -10 ------- Run | Yrd Mat Active Infowar (turns) . | . . Robot Analysis Total . | . . Derelict Logs Recovered . | . . Drone Launches . | . . Drone Recoveries . | . . Exploration | -11 -10 ------------- Run | Yrd Mat Turns Passed 322 | 78 244 Spaces Moved 199 | 72 127 Core 25 | 19 6 Treads . | . . Legs 23 | . 23 Wheels 149 | 53 96 Hover . | . . Flight 2 | . 2 Fastest Speed 50 | 50 80 Average Speed 90 | 72 100 Slowest Speed 200 | 80 200 Overloaded Moves . | . . Propulsion Burnouts . | . . Robots Hopped . | . . Potential Cave-ins . | . . Cave-ins Triggered . | . . Exploration Rate (%) 16 | 6 26 Regions Visited 1 Branch Regions . Pre-discovered Areas . | . . Known Exits Taken . | . . Unknown Exits Taken 1 | 1 . Scrap Searched . | . . Spaces Dug . | . . Terrain Destroyed . | . . Melee . | . . Projectile . | . . AOE . | . . Terrain Rammed . | . . Walls Destroyed . | . . Machines Disabled . | . . Actions | -11 -10 --------- Run | Yrd Mat Total 285 | 88 197 Wait 6 | . 6 Move 198 | 71 127 Hop . | . . Pick Up 12 | 6 6 Fast Attach 2 | . 2 Attach 9 | 6 3 Detach . | . . Swap 6 | . 6 Drop 1 | . 1 Fire 46 | 5 41 Melee . | . . Ram 1 | . 1 Kick 4 | . 4 Crush . | . . Escape Stasis . | . . Rewire . | . . Trap . | . . Miscellaneous . | . . Route ------- -11/Scrapyard -10/Materials (discovered 1 exit: *Min) History --------- Turn | Location | Event 2 | -11/Scrapyard | Met Revision 17 47 | -11/Scrapyard | Discovered new exit (range 8) 79 | -11/Scrapyard | Entered Materials 80 | -10/Materials | Met a group of wandering Federalists 141 | -10/Materials | Discovered new exit (range 17) 177 | -10/Materials | Identified exit to Mines 281 | -10/Materials | Core integrity fell below 50% 301 | -10/Materials | Build established: Mutant 309 | -10/Materials | Lost 3 parts (1n2w) 311 | -10/Materials | Core integrity fell below 20% 323 | -10/Materials | Destroyed by G-47 Trooper with Particle Gun Last Messages --------------- recycling unit. 00293_ T-07 Excavator is excavating. 00293_ U-05 Engineer lays Concrete. 00297_ R-06 Scavenger collects Aluminum Leg. 00298_ T-07 Excavator is excavating. 00303_ U-05 Engineer lays Concrete. 00306_ Kicked G-47 Trooper. 00306_ T-07 Excavator is excavating. 00307_ U-05 Engineer lays Concrete. 00308_ Kicked G-47 Trooper. 00309_ Mining Laser destroyed. 00309_ Kicked G-47 Trooper out of the way. 00310_ T-07 Excavator is excavating. 00311_ G-47 Trooper heat damages Imp. Heat Sink. 00312_ U-05 Engineer lays Concrete. 00313_ Aluminum Leg destroyed. 00316_ T-07 Excavator is excavating. 00317_ U-05 Engineer lays Concrete. 00320_ T-07 Excavator is excavating. 00320_ U-05 Engineer lays Concrete. Map ----- +----------------------------------------------------+ | | | | | | | | | ?????????????????????????????????????????????????? | | ?????????????????????????????????????????????????? | | ?????????????????????????????????????????????????? | | ?????????????????????????????????????????????????? | | ?????????????????????????????????????????????????? | | ?????????????????????????????????????????????????? | | ?????????????????????????????????????????????????? | | ?????????????????????????????????????????????????? | | ?????????????????????????????????????????????????? | | ?????????????????????????????????????????????????? | | ?????????????????????????????????????????????????? | | ?????????????????????????""??????????????????????? | | ?????????????????????????""??????????????????????? | | ?????????????????????????"""?????????????????????? | | ?????????????????????????? ?????????????????????? | | ?????????????????????????? ?????###?????????????? | | ????????????????########??#+#???"""#?????????????? | | ????????????????# u ##?# #???"Y"#??+??????????? | | ????????????????# tu ### ####" "### ######????? | | ?????????????????# g#% ????? | | ?????????????????## g% % ????? | | ??????????????????#### @# """" ????? | | ?????????????????????###### """" ####?????? | | ??????????????????????????# """" #????????? | | ??????????????????????????# #????????? | | ??????????????????????????# #????????? | | ??????????????????????????# """" +????????? | | ??????????????????????????# """" #????????? | | ??????????????????????????# """" #????????? | | ??????????????????????????# #????????? | | ??????????????????????????# #????????? | | ??????????????????????????# #????????? | | ??????????????????????????# ##### #????????? | | ??????????????????????????###+####### ##???????? | | ?????????????????????????????????#" #???????? | | ?????????????????????????????????#"" #???????? | | ?????????????????????????????????#| #???????? | | ???????????????????????????""""" #"" > # """ | | ???????????????????????????""""" #!! # | | ??????????????????????????? """ #"" ######### | | ??????????????????????????? #" %% #???????? | | ???????????????????????????########## ##???????? | | ????????????????????????????# # #????????# | | ????????????????????????????# + ########## | | ????????????????????????????# # | | ????????????????????????????######### | +----------------------------------------------------+ Best States ------------- Heat Dissipation 35 Energy Generation 10 Energy Capacity 125 Matter Stores 300 Matter Capacity 300 Sight Range 16 Terrain Scan Density 10 Evasion (%) 50 Item Schematics ----------------- None Robot Schematics ------------------ None Fabricated ------------ Nothing Repaired ---------- Nothing Studied --------- None Alien Tech Used ----------------- None Achievements -------------- None Challenges ------------ None Game ------ Seed FusionQuantumMantle Manual? 0 Play Time 00:10:50 Cumulative 8.4 hours Start 2026.08.30 @ 17:01:26 End 2026.08.30 @ 17:12:33 Sessions 1 Manual Loads 0 Difficulty Rogue Special Mode None Game No. 13 Rogue 13 Adventurer 0 Explorer 0 Win Type - Total 0 Types 0/0/0/0/0/0/0/0/0/0 Lore% 3 Gallery% 8 Achievement% 6 Wizard Run 0 Options --------- Layout 1 ASCII 0 Keyboard 0 Movement Mouse Keybinds 0 Fullscreen 1 Font 48/Smallcaps Map View 50x35 Zoom Use 0% Tactical HUD 1 Map Filters NONE Filters NONE Steam 1 RUN: 827374ab-8007-40ff-bc1b-a1264044292a